[Event "Kragero Resort International 2022"]
[Site "Kragero"]
[Date "2022.02.24"]
[Round "4.8"]
[White "Heitun, Odd Gunnar"]
[Black "Hammari, Vinjar"]
[Result "0-1"]
[ECO "D94"]
[WhiteElo "1616"]
[BlackElo "1775"]
[Annotator "NA RC"]
[PlyCount "120"]
[EventDate "2022.02.23"]
[EventType "swiss"]
[EventCountry "NOR"]
[SourceTitle "playchess.com"]
[Source "ChessBase"]
[SourceQuality "1"]
[TimeControl "5400+30"]

1. d4 {[%emt 0:00:03]} c5 {[%emt 0:00:08]} 2. Nf3 {[%emt 0:05:26]} Nf6 {[%emt 0:00:26]} 3. c4 {[%emt 0:01:40]} g6 {[%emt 0:00:11]} 4. Nc3 {[%emt 0:00:19]} Bg7 {[%emt 0:00:17]} 5. e3 {[%emt 0:02:37]} O-O {[%emt 0:00:44]} 6. Be2 {[%emt 0:00:26]} cxd4 {[%emt 0:00:53]} 7. exd4 {[%emt 0:00:32]} d5 {[%emt 0:00:08]} 8. O-O {[%emt 0:02:33]} Nc6 {[%emt 0:00:05]} 9. h3 {[%emt 0:04:02]} dxc4 {[%emt 0:00:29]} 10. Bxc4 {[%emt 0:00:12]} Na5 {[%emt 0:00:06]} 11. Be2 {[%emt 0:05:53]} Be6 {[%emt 0:02:28]} 12. b3 {[%emt 0:03:43]} Nc6 {[%emt 0:01:10]} 13. Bb2 {[%emt 0:01:28]} Nd5 {[%emt 0:00:10]} 14. Nxd5 {[%emt 0:10:27]} Bxd5 {[%emt 0:00:05]} 15. Rc1 {[%emt 0:00:20]} Rc8 {[%emt 0:02:24]} 16. Re1 {[%emt 0:03:30]} Qa5 {[%emt 0:02:55]} 17. a3 {[%emt 0:02:53]} Rfd8 {[%emt 0:00:47]} 18. b4 {[%emt 0:06:31]} Qb6 {[%emt 0:00:09]} 19. Rc5 {[%emt 0:03:27]} e6 {[%emt 0:02:19]} 20. Rb5 {[%emt 0:00:19]} Qc7 {[%emt 0:00:17]} 21. Rc5 {[%emt 0:00:50]} Qe7 {[%emt 0:01:13]} 22. Qc1 {[%emt 0:02:57]} a6 {[%emt 0:02:29]} 23. Ne5 {[%emt 0:02:40]} Rc7 {[%emt 0:10:50]} 24. Nxc6 {[%emt 0:01:28]} Rxc6 {[%emt 0:00:21]} 25. Rxc6 {[%emt 0:00:31]} Bxc6 {[%emt 0:00:11]} 26. Qe3 {[%emt 0:04:18]} Qh4 {[%emt 0:00:41]} 27. Rd1 {[%emt 0:02:18]} Ba4 {[%emt 0:00:34]} 28. Re1 {[%emt 0:08:10]} Bxd4 {[%emt 0:04:35]} 29. Bxd4 {[%emt 0:00:09]} Qxd4 {[%emt 0:00:13]} 30. Qg5 {[%emt 0:02:04]} Qd2 {[%emt 0:24:34]} 31. Qxd2 {[%emt 0:00:10]} Rxd2 {[%emt 0:00:04]} 32. Bf3 {[%emt 0:00:24]} Rd7 {[%emt 0:00:26]} 33. Re3 {[%emt 0:00:37]} Kf8 {[%emt 0:00:41]} 34. Rc3 {[%emt 0:00:38]} Ke7 {[%emt 0:01:11]} 35. Kh2 {[%emt 0:01:35]} Kd6 {[%emt 0:00:54]} 36. Rd3+ {[%emt 0:01:08]} Kc7 {[%emt 0:00:08]} 37. Rc3+ {[%emt 0:00:06]} Kb6 {[%emt 0:00:23]} 38. Kg3 {[%emt 0:00:08]} Rd2 {[%emt 0:04:02]} 39. h4 {[%emt 0:00:54]} e5 {[%emt 0:03:58]} 40. Re3 {[%emt 0:00:53]} f6 {[%emt 0:00:26]} 41. h5 {[%emt 0:00:37]} Bb5 {[%emt 0:00:48]} 42. h6 {[%emt 0:02:32]} Rd4 {[%emt 0:05:14]} 43. Be2 {[%emt 0:07:55]} Bxe2 {[%emt 0:00:15]} 44. Rxe2 {[%emt 0:00:04]} Rd3+ {[%emt 0:00:09]} 45. Re3 {[%emt 0:00:55]} Rxe3+ {[%emt 0:00:09]} 46. fxe3 {[%emt 0:00:02]} a5 {[%emt 0:00:20]} 47. Kf3 {[%emt 0:00:57]} axb4 {[%emt 0:00:06]} 48. axb4 {[%emt 0:00:07]} Kc6 {[%emt 0:00:54]} 49. Ke4 {[%emt 0:00:12]} Kd6 {[%emt 0:00:05]} 50. g4 {[%emt 0:00:21]} Ke6 {[%emt 0:01:21]} 51. Kf3 {[%emt 0:02:03]} f5 {[%emt 0:00:12]} 52. g5 {[%emt 0:00:10]} Kd5 {[%emt 0:00:05]} 53. e4+ {[%emt 0:01:02]} fxe4+ {[%emt 0:00:06]} 54. Ke3 {[%emt 0:00:04]} b5 {[%emt 0:00:08]} 55. Ke2 {[%emt 0:00:52]} Kd4 {[%emt 0:00:05]} 56. Kd2 {[%emt 0:00:09]} e3+ {[%emt 0:00:05]} 57. Ke2 {[%emt 0:00:10]} Ke4 {[%emt 0:00:07]} 58. Ke1 {[%emt 0:00:21]} Kf4 {[%emt 0:00:06]} 59. Ke2 {[%emt 0:00:09]} e4 {[%emt 0:00:05]} 60. Ke1 {[%emt 0:00:11]} Kxg5 {[%emt 0:00:17]} 0-1

[Event "Kragero Resort International 2022"]
[Site "Kragero"]
[Date "2022.02.24"]
[Round "4.10"]
[White "Osmak, Yuliia"]
[Black "Lie, Kjetil A."]
[Result "0-1"]
[ECO "A70"]
[WhiteElo "2432"]
[BlackElo "2520"]
[Annotator "RC"]
[PlyCount "106"]
[EventDate "2022.02.23"]
[EventType "swiss"]
[EventCountry "NOR"]
[SourceTitle "playchess.com"]
[Source "ChessBase"]
[SourceQuality "1"]
[TimeControl "5400+30"]

1. d4 {[%emt 0:00:09]} Nf6 {[%emt 0:00:48]} 2. c4 {[%emt 0:00:10]} e6 {[%emt 0:01:01]} 3. Nf3 {[%emt 0:00:25]} c5 {[%emt 0:02:50]} 4. d5 {[%emt 0:02:08]} d6 {[%emt 0:00:30]} 5. Nc3 {[%emt 0:00:38]} exd5 {[%emt 0:00:49]} 6. cxd5 {[%emt 0:00:21]} g6 {[%emt 0:00:10]} 7. e4 {[%emt 0:00:32]} a6 {[%emt 0:05:02]} 8. a4 {[%emt 0:01:18]} Bg4 {[%emt 0:00:19]} 9. h3 {[%emt 0:08:27]} Bxf3 {[%emt 0:00:58]} 10. Qxf3 {[%emt 0:00:04]} Bg7 {[%emt 0:01:06]} 11. Be2 {[%emt 0:01:23]} O-O {[%emt 0:01:50]} 12. O-O {[%emt 0:02:04]} Nbd7 {[%emt 0:04:33]} 13. Qg3 {[%emt 0:18:57]} Qe7 {[%emt 0:04:29]} 14. Bf3 {[%emt 0:04:36]} Rab8 {[%emt 0:03:25]} 15. Bf4 {[%emt 0:01:20]} Ne8 {[%emt 0:00:19]} 16. a5 {[%emt 0:10:02]} b5 {[%emt 0:06:14]} 17. axb6 {[%emt 0:00:19]} Rxb6 {[%emt 0:00:08]} 18. Ra2 {[%emt 0:01:58]} Ne5 {[%emt 0:19:55]} 19. Be2 {[%emt 0:02:33]} Qb7 {[%emt 0:06:37]} 20. Bc1 {[%emt 0:02:39]} Nc7 {[%emt 0:04:03]} 21. f4 {[%emt 0:01:41]} Nd7 {[%emt 0:00:06]} 22. Bg4 {[%emt 0:04:49]} f5 {[%emt 0:12:13]} 23. exf5 {[%emt 0:02:07]} gxf5 {[%emt 0:00:05]} 24. Bf3 {[%emt 0:01:03]} Qc8 {[%emt 0:04:36]} 25. Re1 {[%emt 0:05:17]} Re8 {[%emt 0:06:47]} 26. Kh2 {[%emt 0:03:36]} Nf6 {[%emt 0:03:46]} 27. Bd2 {[%emt 0:03:09]} Qd7 {[%emt 0:03:06]} 28. Qf2 {[%emt 0:09:51]} Rxe1 {[%emt 0:00:43]} 29. Qxe1 {[%emt 0:00:51]} Qf7 {[%emt 0:00:21]} 30. Qe2 {[%emt 0:01:41]} Rb4 {[%emt 0:03:13]} 31. Nd1 {[%emt 0:03:04]} Rb8 {[%emt 0:01:41]} 32. Ne3 {[%emt 0:01:45]} Re8 {[%emt 0:00:59]} 33. Qd1 {[%emt 0:02:07]} Qg6 {[%emt 0:00:46]} 34. Ra4 {[%emt 0:01:38]} Ne4 {[%emt 0:02:41]} 35. Bxe4 {[%emt 0:00:26]} fxe4 {[%emt 0:00:24]} 36. Bc3 {[%emt 0:00:35]} Bxc3 {[%emt 0:00:29]} 37. bxc3 {[%emt 0:00:04]} Qf6 {[%emt 0:00:19]} 38. Qg4+ {[%emt 0:00:58]} Kh8 {[%emt 0:00:08]} 39. Qf5 {[%emt 0:02:47]} Qxf5 {[%emt 0:00:58]} 40. Nxf5 {[%emt 0:00:04]} e3 {[%emt 0:00:07]} 41. Ra1 {[%emt 0:00:35]} e2 {[%emt 0:00:56]} 42. Re1 {[%emt 0:00:09]} Nxd5 {[%emt 0:00:13]} 43. Nxd6 {[%emt 0:00:59]} Re6 {[%emt 0:01:15]} 44. Nf7+ {[%emt 0:00:52]} Kg7 {[%emt 0:00:47]} 45. Ng5 {[%emt 0:01:15]} Re3 {[%emt 0:00:18]} 46. f5 {[%emt 0:01:05]} Nf4 {[%emt 0:00:41]} 47. Ne6+ {[%emt 0:00:57]} Nxe6 {[%emt 0:00:04]} 48. fxe6 {[%emt 0:00:02]} a5 {[%emt 0:00:40]} 49. Kg1 {[%emt 0:00:11]} a4 {[%emt 0:00:13]} 50. Kf2 {[%emt 0:00:04]} Rxe6 {[%emt 0:00:06]} 51. Ra1 {[%emt 0:01:36]} e1=Q+ {[%emt 0:00:18]} 52. Rxe1 {[%emt 0:00:04]} Rxe1 {[%emt 0:00:04]} 53. Kxe1 {[%emt 0:00:02]} a3 {[%emt 0:00:07]} 0-1

[Event "Kragero Resort International 2022"]
[Site "Kragero"]
[Date "2022.02.24"]
[Round "4.13"]
[White "Kvaloy, Aksel Bu"]
[Black "Gharibyan, Mamikon"]
[Result "0-1"]
[ECO "B31"]
[WhiteElo "2280"]
[BlackElo "2479"]
[Annotator "RC"]
[PlyCount "76"]
[EventDate "2022.02.23"]
[EventType "swiss"]
[EventCountry "NOR"]
[SourceTitle "playchess.com"]
[Source "ChessBase"]
[SourceQuality "1"]
[TimeControl "5400+30"]

1. e4 {[%emt 0:00:04]} c5 {[%emt 0:00:07]} 2. Nf3 {[%emt 0:00:16]} Nc6 {[%emt 0:00:08]} 3. Bb5 {[%emt 0:00:49]} g6 {[%emt 0:00:06]} 4. O-O {[%emt 0:02:30]} Bg7 {[%emt 0:00:06]} 5. c3 {[%emt 0:00:23]} Nf6 {[%emt 0:00:12]} 6. Re1 {[%emt 0:00:26]} Qb6 {[%emt 0:00:56]} 7. Bxc6 {[%emt 0:05:26]} bxc6 {[%emt 0:09:11]} 8. d4 {[%emt 0:02:14]} d5 {[%emt 0:06:00]} 9. e5 {[%emt 0:07:06]} Ne4 {[%emt 0:00:33]} 10. b3 {[%emt 0:18:07]} O-O {[%emt 0:09:54]} 11. Ba3 {[%emt 0:02:41]} Bg4 {[%emt 0:06:34]} 12. h3 {[%emt 0:32:50]} Bxf3 {[%emt 0:00:30]} 13. gxf3 {[%emt 0:00:21]} Ng5 {[%emt 0:00:01]} 14. Bxc5 {[%emt 0:00:53]} Qc7 {[%emt 0:01:19]} 15. h4 {[%emt 0:07:09]} Nh3+ {[%emt 0:03:53]} 16. Kh2 {[%emt 0:01:13]} Nf4 {[%emt 0:00:07]} 17. Qd2 {[%emt 0:01:26]} Bh6 {[%emt 0:01:09]} 18. Rg1 {[%emt 0:00:39]} f6 {[%emt 0:01:10]} 19. Qe3 {[%emt 0:00:59]} fxe5 {[%emt 0:03:06]} 20. Qxe5 {[%emt 0:01:44]} Qd7 {[%emt 0:00:58]} 21. Rg4 {[%emt 0:00:49]} Nd3 {[%emt 0:16:43]} 22. Qe2 {[%emt 0:02:54]} Qf5 {[%emt 0:00:47]} 23. Nd2 {[%emt 0:01:41]} Nxf2 {[%emt 0:00:48]} 24. Rg2 {[%emt 0:01:09]} Nd3 {[%emt 0:01:20]} 25. Rg4 {[%emt 0:01:09]} Rf6 {[%emt 0:01:44]} 26. Nf1 {[%emt 0:04:01]} Re6 {[%emt 0:01:32]} 27. Qg2 {[%emt 0:00:22]} Ne1 {[%emt 0:02:45]} 28. Ng3 {[%emt 0:01:47]} Qxg4 {[%emt 0:04:17]} 29. fxg4 {[%emt 0:00:14]} Nxg2 {[%emt 0:00:03]} 30. Kxg2 {[%emt 0:00:06]} Bd2 {[%emt 0:01:42]} 31. c4 {[%emt 0:01:24]} a5 {[%emt 0:00:30]} 32. cxd5 {[%emt 0:00:36]} cxd5 {[%emt 0:00:01]} 33. a3 {[%emt 0:00:27]} Be1 {[%emt 0:03:47]} 34. Rb1 {[%emt 0:01:15]} Re3 {[%emt 0:01:31]} 35. Nf1 {[%emt 0:00:47]} Re2+ {[%emt 0:00:05]} 36. Kf3 {[%emt 0:00:34]} Rf2+ {[%emt 0:00:23]} 37. Ke3 {[%emt 0:00:14]} Raf8 {[%emt 0:00:45]} 38. Rxe1 {[%emt 0:01:46]} R8f3# {[%emt 0:00:06]} 0-1

[Event "Kragero Resort International 2022"]
[Site "Kragero"]
[Date "2022.02.24"]
[Round "4.14"]
[White "Grave, Jacob Templen"]
[Black "Injac, Teodora"]
[Result "0-1"]
[ECO "E16"]
[WhiteElo "2267"]
[BlackElo "2407"]
[Annotator "NA RC"]
[PlyCount "82"]
[EventDate "2022.02.23"]
[EventType "swiss"]
[EventCountry "NOR"]
[SourceTitle "playchess.com"]
[Source "ChessBase"]
[SourceQuality "1"]
[TimeControl "5400+30"]

1. d4 {[%emt 0:00:03]} Nf6 {[%emt 0:00:35]} 2. c4 {[%emt 0:00:07]} e6 {[%emt 0:00:13]} 3. g3 {[%emt 0:00:09]} d5 {[%emt 0:01:21]} 4. Bg2 {[%emt 0:00:13]} Bb4+ {[%emt 0:01:08]} 5. Nd2 {[%emt 0:00:42]} O-O {[%emt 0:00:27]} 6. Ngf3 {[%emt 0:00:11]} b6 {[%emt 0:01:37]} 7. O-O {[%emt 0:00:19]} Bb7 {[%emt 0:00:04]} 8. cxd5 {[%emt 0:00:20]} exd5 {[%emt 0:01:49]} 9. a3 {[%emt 0:00:44]} Bd6 {[%emt 0:11:02]} 10. b4 {[%emt 0:05:07]} a5 {[%emt 0:05:51]} 11. b5 {[%emt 0:00:08]} c6 {[%emt 0:02:04]} 12. Qa4 {[%emt 0:01:54]} cxb5 {[%emt 0:06:08]} 13. Qxb5 {[%emt 0:00:05]} Ba6 {[%emt 0:02:45]} 14. Qb2 {[%emt 0:00:49]} Bxe2 {[%emt 0:06:52]} 15. Re1 {[%emt 0:00:17]} Ba6 {[%emt 0:02:36]} 16. Ne5 {[%emt 0:05:14]} Nbd7 $11 {[%emt 0:08:15]} 17. Nf1 {[%emt 0:08:35]} Bxe5 {[%emt 0:08:08]} 18. dxe5 {[%emt 0:00:08]} Ne4 {[%emt 0:00:04]} 19. Be3 {[%emt 0:12:19]} Rc8 {[%emt 0:05:34]} 20. Bd4 {[%emt 0:04:26]} Ndc5 {[%emt 0:01:32]} 21. Red1 {[%emt 0:01:47]} Na4 {[%emt 0:02:27]} 22. Qb3 {[%emt 0:01:07]} Nec3 {[%emt 0:06:07]} 23. Bxc3 {[%emt 0:06:08]} Nxc3 {[%emt 0:00:03]} 24. Rd2 {[%emt 0:00:20]} Qc7 {[%emt 0:04:34]} 25. Re1 {[%emt 0:13:57]} Rfe8 {[%emt 0:04:17]} 26. f4 {[%emt 0:09:19]} d4 {[%emt 0:02:25]} 27. Kh1 {[%emt 0:01:34]} Qc5 {[%emt 0:00:26]} 28. Rb2 {[%emt 0:00:59]} Rb8 {[%emt 0:04:51]} 29. Nd2 {[%emt 0:00:30]} Bc8 {[%emt 0:00:18]} 30. Ne4 {[%emt 0:02:35]} Nxe4 {[%emt 0:00:20]} 31. Bxe4 {[%emt 0:00:07]} Be6 {[%emt 0:01:55]} 32. Qd3 {[%emt 0:02:16]} Bc4 {[%emt 0:00:38]} 33. Qf3 {[%emt 0:03:38]} Rbd8 {[%emt 0:01:35]} 34. Rd1 {[%emt 0:08:36]} b5 {[%emt 0:00:17]} 35. Rbd2 {[%emt 0:00:18]} g6 {[%emt 0:02:25]} 36. Qf2 {[%emt 0:01:36]} Bb3 {[%emt 0:00:49]} 37. Bc2 {[%emt 0:02:46]} Bxc2 {[%emt 0:01:19]} 38. Rxc2 {[%emt 0:00:04]} Qxa3 {[%emt 0:00:10]} 39. Rc7 {[%emt 0:02:32]} Qe3 {[%emt 0:02:19]} 40. Qf1 {[%emt 0:00:58]} Qe4+ {[%emt 0:00:23]} 41. Kg1 {[%emt 0:00:05]} d3 {[%emt 0:00:12]} 0-1

[Event "Kragero Resort International 2022"]
[Site "Kragero"]
[Date "2022.02.24"]
[Round "4.15"]
[White "Reimanis, Ritvars"]
[Black "Radeva, Viktoria"]
[Result "1/2-1/2"]
[ECO "E11"]
[WhiteElo "2397"]
[BlackElo "2261"]
[Annotator "RC"]
[PlyCount "60"]
[EventDate "2022.02.23"]
[EventType "swiss"]
[EventCountry "NOR"]
[SourceTitle "playchess.com"]
[Source "ChessBase"]
[SourceQuality "1"]
[TimeControl "5400+30"]

1. d4 {[%emt 0:00:05]} Nf6 {[%emt 0:01:01]} 2. Nf3 {[%emt 0:00:12]} e6 {[%emt 0:00:15]} 3. c4 {[%emt 0:00:07]} Bb4+ {[%emt 0:00:21]} 4. Bd2 {[%emt 0:00:06]} Qe7 {[%emt 0:00:08]} 5. g3 {[%emt 0:00:12]} Nc6 {[%emt 0:00:26]} 6. Bg2 {[%emt 0:00:04]} Bxd2+ {[%emt 0:00:05]} 7. Nbxd2 {[%emt 0:00:06]} d6 {[%emt 0:00:28]} 8. e4 {[%emt 0:00:20]} e5 {[%emt 0:00:20]} 9. d5 {[%emt 0:00:04]} Nb8 {[%emt 0:00:04]} 10. O-O {[%emt 0:00:05]} a5 {[%emt 0:01:24]} 11. Ne1 {[%emt 0:00:10]} O-O {[%emt 0:02:22]} 12. Nd3 {[%emt 0:05:42]} Bg4 {[%emt 0:08:42]} 13. f3 {[%emt 0:14:13]} Bd7 {[%emt 0:00:06]} 14. f4 {[%emt 0:13:07]} exf4 {[%emt 0:11:07]} 15. gxf4 {[%emt 0:00:08]} Na6 {[%emt 0:01:05]} 16. Qf3 {[%emt 0:05:15]} Bg4 {[%emt 0:05:37]} 17. Qf2 {[%emt 0:12:52]} Bc8 {[%emt 0:23:58]} 18. a3 {[%emt 0:08:35]} a4 {[%emt 0:02:15]} 19. Rae1 {[%emt 0:01:09]} Nd7 {[%emt 0:01:59]} 20. Qd4 {[%emt 0:09:55]} Ndc5 {[%emt 0:02:15]} 21. Re3 {[%emt 0:00:24]} Nxd3 {[%emt 0:01:29]} 22. Rxd3 {[%emt 0:00:01]} Bd7 {[%emt 0:05:49]} 23. Rg3 {[%emt 0:06:18]} f6 {[%emt 0:00:30]} 24. Re1 {[%emt 0:00:36]} Rfe8 {[%emt 0:02:36]} 25. Nf3 {[%emt 0:01:35]} Qf8 {[%emt 0:04:06]} 26. e5 {[%emt 0:01:16]} fxe5 {[%emt 0:00:42]} 27. fxe5 {[%emt 0:00:02]} dxe5 {[%emt 0:00:33]} 28. Nxe5 {[%emt 0:00:59]} Qc5 {[%emt 0:03:29]} 29. Qxc5 {[%emt 0:00:38]} Nxc5 {[%emt 0:00:05]} 30. Rge3 {[%emt 0:00:07]} Bf5 {[%emt 0:03:04]} 1/2-1/2

[Event "Kragero Resort International 2022"]
[Site "Kragero"]
[Date "2022.02.24"]
[Round "4.16"]
[White "Thorhallsson, Simon"]
[Black "Mikalsen, Erlend"]
[Result "1/2-1/2"]
[ECO "B62"]
[WhiteElo "2245"]
[BlackElo "2368"]
[Annotator "RC"]
[PlyCount "63"]
[EventDate "2022.02.23"]
[EventType "swiss"]
[EventCountry "NOR"]
[SourceTitle "playchess.com"]
[Source "ChessBase"]
[SourceQuality "1"]
[TimeControl "5400+30"]

1. e4 {[%emt 0:00:04]} c5 {[%emt 0:00:03]} 2. Nf3 {[%emt 0:00:08]} d6 {[%emt 0:00:02]} 3. d4 {[%emt 0:00:10]} cxd4 {[%emt 0:00:03]} 4. Nxd4 {[%emt 0:00:07]} Nf6 {[%emt 0:00:03]} 5. Nc3 {[%emt 0:00:10]} Nc6 {[%emt 0:00:04]} 6. Bg5 {[%emt 0:00:17]} e6 {[%emt 0:00:04]} 7. Qd3 {[%emt 0:00:54]} Bd7 {[%emt 0:00:35]} 8. O-O-O {[%emt 0:01:35]} a6 {[%emt 0:02:28]} 9. Be2 {[%emt 0:05:35]} Be7 {[%emt 0:01:48]} 10. Kb1 {[%emt 0:03:30]} b5 {[%emt 0:02:04]} 11. Nxc6 {[%emt 0:16:22]} Bxc6 {[%emt 0:00:05]} 12. Bf3 {[%emt 0:00:31]} Qb6 {[%emt 0:02:54]} 13. e5 {[%emt 0:13:27]} dxe5 {[%emt 0:00:15]} 14. Bxc6+ {[%emt 0:00:10]} Qxc6 {[%emt 0:00:04]} 15. Bxf6 {[%emt 0:00:26]} Bxf6 {[%emt 0:00:53]} 16. Ne4 {[%emt 0:01:08]} Be7 {[%emt 0:02:01]} 17. Rhe1 {[%emt 0:03:55]} Rd8 {[%emt 0:03:23]} 18. Qf3 {[%emt 0:01:46]} Rc8 {[%emt 0:00:13]} 19. c3 {[%emt 0:04:38]} f5 {[%emt 0:01:52]} 20. Nd2 {[%emt 0:00:22]} e4 {[%emt 0:00:45]} 21. Qe2 {[%emt 0:01:20]} O-O {[%emt 0:04:00]} 22. f3 {[%emt 0:02:23]} Bd6 {[%emt 0:07:24]} 23. fxe4 {[%emt 0:04:51]} Bxh2 {[%emt 0:00:14]} 24. exf5 {[%emt 0:03:40]} exf5 {[%emt 0:00:06]} 25. Nf3 {[%emt 0:03:26]} Bg3 {[%emt 0:02:20]} 26. Nd4 {[%emt 0:00:42]} Qb7 {[%emt 0:02:05]} 27. Qe6+ {[%emt 0:03:35]} Kh8 {[%emt 0:00:09]} 28. Re2 {[%emt 0:00:58]} Rf6 {[%emt 0:08:24]} 29. Qe8+ {[%emt 0:01:15]} Rf8 {[%emt 0:00:04]} 30. Qe6 {[%emt 0:00:11]} Rf6 {[%emt 0:00:41]} 31. Qe8+ {[%emt 0:00:17]} Rf8 {[%emt 0:00:01]} 32. Qe6 {[%emt 0:00:09]} 1/2-1/2

[Event "Kragero Resort International 2022"]
[Site "Kragero"]
[Date "2022.02.24"]
[Round "4.17"]
[White "Gjestemoen-VonHirsch, Andre"]
[Black "Kanyamarala, Tarun"]
[Result "1/2-1/2"]
[ECO "B33"]
[WhiteElo "2243"]
[BlackElo "2343"]
[Annotator "NA RC"]
[PlyCount "135"]
[EventDate "2022.02.23"]
[EventType "swiss"]
[EventCountry "NOR"]
[SourceTitle "playchess.com"]
[Source "ChessBase"]
[SourceQuality "1"]
[TimeControl "5400+30"]

1. e4 {[%emt 0:00:05]} c5 {[%emt 0:00:32]} 2. Nf3 {[%emt 0:00:09]} Nc6 {[%emt 0:00:23]} 3. d4 {[%emt 0:00:05]} cxd4 {[%emt 0:00:06]} 4. Nxd4 {[%emt 0:00:04]} Nf6 {[%emt 0:00:12]} 5. Nc3 {[%emt 0:00:04]} e5 {[%emt 0:00:08]} 6. Ndb5 {[%emt 0:00:04]} d6 {[%emt 0:00:07]} 7. Bg5 {[%emt 0:00:16]} a6 {[%emt 0:00:12]} 8. Na3 {[%emt 0:00:03]} b5 {[%emt 0:00:07]} 9. Nd5 {[%emt 0:00:04]} Be7 {[%emt 0:00:08]} 10. Bxf6 {[%emt 0:00:04]} Bxf6 {[%emt 0:00:10]} 11. c3 {[%emt 0:00:06]} O-O {[%emt 0:00:32]} 12. Nc2 {[%emt 0:00:07]} Bg5 {[%emt 0:04:33]} 13. a4 {[%emt 0:00:04]} bxa4 {[%emt 0:00:15]} 14. Rxa4 {[%emt 0:00:09]} Ne7 {[%emt 0:04:56]} 15. Ncb4 {[%emt 0:00:27]} a5 {[%emt 0:06:28]} 16. Nxe7+ {[%emt 0:03:31]} Qxe7 {[%emt 0:00:49]} 17. Nd5 {[%emt 0:05:40]} Qb7 {[%emt 0:06:32]} 18. b3 {[%emt 0:05:58]} Bd7 $11 {[%emt 0:06:09]} 19. Ra2 {[%emt 0:11:11]} Rfc8 {[%emt 0:05:03]} 20. Bc4 {[%emt 0:03:10]} a4 {[%emt 0:02:26]} 21. O-O {[%emt 0:02:21]} Be6 {[%emt 0:10:47]} 22. Qc2 {[%emt 0:30:52]} axb3 {[%emt 0:09:29]} 23. Bxb3 {[%emt 0:00:09]} Rab8 {[%emt 0:05:43]} 24. Ra3 {[%emt 0:00:35]} g6 {[%emt 0:01:28]} 25. Rd1 {[%emt 0:10:22]} Qb5 {[%emt 0:16:08]} 26. Nb4 {[%emt 0:07:15]} Qc5 {[%emt 0:00:00]} 27. Bxe6 {[%emt 0:03:06]} fxe6 {[%emt 0:00:00]} 28. Qd3 {[%emt 0:00:19]} Be7 {[%emt 0:00:00]} 29. Qh3 {[%emt 0:01:17]} Qc4 {[%emt 0:02:23]} 30. Ra7 {[%emt 0:05:28]} Re8 {[%emt 0:00:02]} 31. Nc2 {[%emt 0:06:45]} Kh8 {[%emt 0:13:05]} 32. Ne3 {[%emt 0:03:08]} Qxe4 {[%emt 0:00:51]} 33. Qxe6 {[%emt 0:00:47]} Rb1 {[%emt 0:01:09]} 34. Rxb1 {[%emt 0:00:41]} Qxb1+ {[%emt 0:00:02]} 35. Nf1 {[%emt 0:00:06]} Qf5 {[%emt 0:00:21]} 36. Qxf5 {[%emt 0:02:06]} gxf5 {[%emt 0:00:05]} 37. Ne3 {[%emt 0:00:04]} f4 {[%emt 0:01:04]} 38. Nd5 {[%emt 0:00:36]} Rb8 {[%emt 0:00:11]} 39. g3 {[%emt 0:00:45]} Bg5 {[%emt 0:03:15]} 40. h4 {[%emt 0:00:40]} Bh6 {[%emt 0:01:36]} 41. g4 {[%emt 0:00:12]} Bg7 {[%emt 0:00:15]} 42. g5 {[%emt 0:00:53]} e4 {[%emt 0:00:41]} 43. Kg2 {[%emt 0:01:32]} Be5 {[%emt 0:00:19]} 44. Ra4 {[%emt 0:00:28]} f3+ {[%emt 0:00:52]} 45. Kh3 {[%emt 0:00:03]} Rb2 {[%emt 0:00:05]} 46. Rxe4 {[%emt 0:00:07]} Rxf2 {[%emt 0:00:04]} 47. Kg4 {[%emt 0:01:12]} Rd2 {[%emt 0:00:33]} 48. Ne3 {[%emt 0:00:03]} f2 {[%emt 0:00:20]} 49. Kf3 {[%emt 0:00:07]} Rd3 {[%emt 0:01:34]} 50. Kxf2 {[%emt 0:00:20]} Rxc3 {[%emt 0:00:05]} 51. Kf3 {[%emt 0:01:12]} Rd3 {[%emt 0:00:33]} 52. Kg4 {[%emt 0:00:57]} Rd4 {[%emt 0:00:18]} 53. Rxd4 {[%emt 0:00:17]} Bxd4 {[%emt 0:00:05]} 54. Nd5 {[%emt 0:00:06]} Kg7 {[%emt 0:00:33]} 55. h5 {[%emt 0:00:12]} Kf7 {[%emt 0:00:44]} 56. Kf5 {[%emt 0:00:02]} Be5 {[%emt 0:00:43]} 57. Ne3 {[%emt 0:00:56]} Bd4 {[%emt 0:00:54]} 58. Nd5 {[%emt 0:01:21]} Be5 {[%emt 0:00:08]} 59. Nb6 {[%emt 0:00:38]} Bd4 {[%emt 0:00:44]} 60. Nc4 {[%emt 0:00:30]} Bc5 {[%emt 0:00:11]} 61. g6+ {[%emt 0:00:30]} hxg6+ {[%emt 0:00:11]} 62. hxg6+ {[%emt 0:00:03]} Kg7 {[%emt 0:00:09]} 63. Nb2 {[%emt 0:00:54]} Bd4 {[%emt 0:00:26]} 64. Nd3 {[%emt 0:00:04]} Be5 {[%emt 0:00:22]} 65. Nb4 {[%emt 0:00:20]} Kg8 {[%emt 0:01:13]} 66. Nd5 {[%emt 0:00:06]} Kg7 {[%emt 0:00:12]} 67. Kg5 {[%emt 0:00:59]} Bd4 {[%emt 0:00:38]} 68. Kf5 {[%emt 0:00:03]} 1/2-1/2

[Event "Kragero Resort International 2022"]
[Site "Kragero"]
[Date "2022.02.24"]
[Round "4.18"]
[White "Alinasab, Mobina"]
[Black "Lye, Sverre"]
[Result "1-0"]
[ECO "B31"]
[WhiteElo "2325"]
[BlackElo "1917"]
[Annotator "NA RC"]
[PlyCount "67"]
[EventDate "2022.02.23"]
[EventType "swiss"]
[EventCountry "NOR"]
[SourceTitle "playchess.com"]
[Source "ChessBase"]
[SourceQuality "1"]
[TimeControl "5400+30"]

1. e4 {[%emt 0:00:04]} c5 {[%emt 0:00:05]} 2. Nf3 {[%emt 0:00:32]} Nc6 {[%emt 0:00:08]} 3. Bb5 {[%emt 0:00:28]} g6 {[%emt 0:00:32]} 4. Bxc6 {[%emt 0:00:14]} dxc6 {[%emt 0:00:06]} 5. d3 {[%emt 0:00:07]} Bg7 {[%emt 0:00:10]} 6. h3 {[%emt 0:00:06]} Qc7 {[%emt 0:01:46]} 7. O-O {[%emt 0:04:07]} e5 {[%emt 0:00:48]} 8. Be3 {[%emt 0:03:24]} b6 {[%emt 0:00:12]} 9. Nc3 {[%emt 0:03:20]} Nf6 {[%emt 0:08:57]} 10. Qd2 {[%emt 0:00:10]} O-O {[%emt 0:06:37]} 11. Nh2 {[%emt 0:02:36]} Nh5 {[%emt 0:03:09]} 12. Ne2 {[%emt 0:03:23]} Be6 {[%emt 0:06:26]} 13. g4 {[%emt 0:15:23]} Nf6 {[%emt 0:01:30]} 14. f4 {[%emt 0:01:44]} exf4 {[%emt 0:02:51]} 15. Bxf4 {[%emt 0:00:27]} Qd7 {[%emt 0:01:43]} 16. Bh6 {[%emt 0:08:02]} Ne8 {[%emt 0:06:16]} 17. Bxg7 {[%emt 0:03:37]} Nxg7 {[%emt 0:04:02]} 18. Rf6 {[%emt 0:06:53]} Ne8 {[%emt 0:13:07]} 19. Rf2 {[%emt 0:01:38]} Nd6 {[%emt 0:09:32]} 20. Qg5 {[%emt 0:01:27]} Nb5 {[%emt 0:06:06]} 21. e5 {[%emt 0:02:01]} c4 {[%emt 0:03:25]} 22. Rd1 {[%emt 0:06:22]} Qd8 {[%emt 0:01:37]} 23. Qh6 {[%emt 0:01:43]} Qe7 {[%emt 0:06:25]} 24. d4 {[%emt 0:04:21]} f6 {[%emt 0:04:21]} 25. Qh4 {[%emt 0:06:02]} Bd5 {[%emt 0:03:34]} 26. exf6 {[%emt 0:08:04]} Qe4 {[%emt 0:00:38]} 27. Ng3 {[%emt 0:00:07]} Qe3 {[%emt 0:02:05]} 28. Nhf1 {[%emt 0:00:37]} Qe6 {[%emt 0:01:03]} 29. g5 {[%emt 0:00:16]} Nd6 {[%emt 0:01:38]} 30. Re2 {[%emt 0:01:59]} Qc8 {[%emt 0:00:11]} 31. Re7 {[%emt 0:00:15]} Rf7 {[%emt 0:00:59]} 32. Rde1 {[%emt 0:02:35]} Nf5 {[%emt 0:00:57]} 33. Nxf5 {[%emt 0:00:28]} Qxf5 {[%emt 0:00:07]} 34. Rxf7 {[%emt 0:00:21]} 1-0